Workbook

Sheet Data
A1: Compressor Map
A3: Actual conditions of compressor
A4: Inlet temperature, Tin | B4: =72+273.15 -> 345.15 | C4: K
A5: Inlet pressure, Pin | B5: 34.62 | C5: bar
A6: specific heats ratio, k | B6: 1.432 | C6: -
A7: molecular weight, MM | B7: 18.8 | C7: kg/kmol
A8: Compressibility factor, Z | B8: 0.9 | C8: -
A9: Gas constant, R | B9: =8314/B7 -> 442.2340426 | C9: J/kg.K
A10: Specific gravity, SG | B10: =B7/28.97 -> 0.6489471867 | C10: -
A13: Operating point
A14: Estándar flow rate, Qsc | B14: =4820000/1 -> 4820000 | C14: sm3/d
A15: Outlet pressure, Pout | B15: 67 | C15: bar
A16: Polytropic efic, np | B16: 0.8 | C16: -
A17: Polytropic exponent, np | B17: =1/(1-($B$6-1)/($B$6*B16)) -> 1.605381166 | C17: -
A18: Actual inlet flow rate, Qa | B18: =Qa(B14,B5,B4,B8) -> 152041.1631 | C18: m^3/d | D18: =B18/24 -> 6335.048463 | E18: m^3/hr
A19: Pressure ratio, rp | B19: =((B15)/B5)^1 -> 1.935297516 | C19: -
A20: Discharge temperature, Tdis | B20: =B4*B19^((B17-1)/B17) -> 442.7300581 | C20: K | D20: =B20-273.15 -> 169.5800581 | E20: °C
A21: Polytropic head, Hp | B21: =Hp(B19,B4,B5,B8,B17,B9) -> 10498.71155 | C21: m
A22: Power consuption, Pow | B22: =Power_c(B5,B4,B8,B9,D18,B21,B16) -> 5.709353984 | C22: Mw

Sheet Calculus
D1: Compressor map - Manufacturer
D2: N | K2: N | R2: N | Y2: N | AF2: N
A3: Aproximate test conditions | D3: 4500 | K3: 4000 | R3: 3500 | Y3: 3000 | AF3: 2500 | AM3: Limit min | AO3: Limit max
A4: Inlet temperature, Tin | B4: =62.3+273.15 -> 335.45 | C4: K | D4: Q | E4: Hp | F4: np | G4: n | H4: rp | I4: Pout | J4: Power | K4: Q | L4: Hp | M4: np | N4: n | O4: rp | P4: Pout | Q4: Power | R4: Q | S4: Hp | T4: np | U4: n | V4: rp | W4: Pout | X4: Power | Y4: Q | Z4: Hp | AA4: np | AB4: n | AC4: rp | AD4: Pout | AE4: Power | AF4: Q | AG4: Hp | AH4: np | AI4: n | AJ4: rp | AK4: Pout | AL4: Power | AM4: Q | AN4: Hp | AO4: Q | AP4: Hp
A5: Inlet pressure, Pin | B5: 37.3 | C5: bar | D5: m^3/hr | E5: m | F5: % | G5: - | I5: bar | J5: kJ | K5: m^3/hr | L5: m | M5: % | N5: - | P5: bar | Q5: kJ | R5: m^3/hr | S5: m | T5: % | U5: - | W5: bar | X5: kJ | Y5: m^3/hr | Z5: m | AA5: % | AB5: - | AD5: bar | AE5: kJ | AF5: m^3/s | AG5: m | AH5: % | AI5: - | AK5: bar | AL5: kJ | AM5: m^3/s | AN5: - | AO5: m^3/s | AP5: -
A6: specific heats ratio, k | B6: 1.432 | C6: - | D6: 2544.6573 | E6: 8852.737177 | F6: 0.697 | G6: 1.763110665 | H6: 1.778586277 | I6: 66.34126812 | J6: 2.4736082 | K6: 2261.9176 | L6: 6994.7553 | M6: 0.697 | N6: 1.763110665 | O6: 1.594077677 | P6: 59.45909737 | Q6: 1.737294099 | R6: 1979.1779 | S6: 5355.359527 | T6: 0.697 | U6: 1.763110665 | V6: 1.440726737 | W6: 53.73910729 | X6: 1.16385132 | Y6: 1696.4382 | Z6: 3934.549856 | AA6: 0.697 | AB6: 1.763110665 | AC6: 1.314892909 | AD6: 49.04550551 | AE6: 0.7329209481 | AF6: 1413.6985 | AG6: 2732.326289 | AH6: 0.697 | AI6: 1.763110665 | AJ6: 1.213483632 | AK6: 45.26293948 | AL6: 0.4241440672 | AM6: 1413.6985 | AN6: 2732.326289 | AO6: 2845.612938 | AP6: 1418.68332
A7: molecular weight, MM | B7: 19.11 | C7: kg/kmol | D7: 2942.472488 | E7: 8808.170977 | F7: 0.756 | G7: 1.664010624 | H7: 1.783237105 | I7: 66.51474402 | J7: 2.623814745 | K7: 2615.5311 | L7: 6959.5425 | M7: 0.756 | N7: 1.664010624 | O7: 1.59617269 | P7: 59.53724133 | Q7: 1.842788957 | R7: 2288.589713 | S7: 5328.399727 | T7: 0.756 | U7: 1.664010624 | V7: 1.441351975 | W7: 53.76242868 | X7: 1.234524633 | Y7: 1961.648325 | Z7: 3914.742656 | AA7: 0.756 | AB7: 1.664010624 | AC7: 1.314778471 | AD7: 49.04123696 | AE7: 0.777426591 | AF7: 1634.706938 | AG7: 2718.571289 | AH7: 0.756 | AI7: 1.664010624 | AJ7: 1.213091938 | AK7: 45.2483293 | AL7: 0.4498996476 | AM7: 1696.4382 | AN7: 3934.549856 | AO7: 3414.735525 | AP7: 2042.903981
A8: Polytropic efficiency, np | B8: 0.85 | C8: - | D8: 3684.409087 | E8: 8167.826362 | F8: 0.824 | G8: 1.577564816 | H8: 1.724829568 | I8: 64.33614289 | J8: 2.795142454 | K8: 3275.0303 | L8: 6453.5912 | M8: 0.824 | N8: 1.577564816 | O8: 1.551763305 | P8: 57.88077128 | Q8: 1.963117883 | R8: 2865.651513 | S8: 4941.030762 | T8: 0.824 | U8: 1.577564816 | V8: 1.408562691 | W8: 52.53938837 | X8: 1.315135613 | Y8: 2456.272725 | Z8: 3630.14505 | AA8: 0.824 | AB8: 1.577564816 | AC8: 1.291479222 | AD8: 48.172175 | AE8: 0.8281903567 | AF8: 2046.893937 | AG8: 2520.934062 | AH8: 0.824 | AI8: 1.577564816 | AJ8: 1.197385925 | AK8: 44.662495 | AL8: 0.4792768268 | AM8: 1979.1779 | AN8: 5355.359527 | AO8: 3983.858113 | AP8: 2780.619308
A9: Compressibility factor, Z | B9: 0.91 | C9: - | D9: 4008.2472 | E9: 7699.426903 | F9: 0.84 | G9: 1.560398506 | H9: 1.677857 | I9: 62.5840661 | J9: 2.811838861 | K9: 3562.8864 | L9: 6083.4978 | M9: 0.84 | N9: 1.560398506 | O9: 1.516783073 | P9: 56.57600861 | Q9: 1.974844303 | R9: 3117.5256 | S9: 4657.678003 | T9: 0.84 | U9: 1.560398506 | V9: 1.383195509 | W9: 51.59319247 | X9: 1.322991398 | Y9: 2672.1648 | Z9: 3421.967512 | AA9: 0.84 | AB9: 1.560398506 | AC9: 1.273727409 | AD9: 47.51003236 | AE9: 0.8331374403 | AF9: 2226.804 | AG9: 2376.366328 | AH9: 0.84 | AI9: 1.560398506 | AJ9: 1.185570567 | AK9: 44.22178216 | AL9: 0.4821397224 | AM9: 2261.9176 | AN9: 6994.7553 | AO9: 4552.9807 | AP9: 3631.8293
A10: Gas constant, R | B10: =8314/B7 -> 435.0601779 | C10: J/kg.K | D10: 4311.933525 | E10: 7061.443059 | F10: 0.844 | G10: 1.556265194 | H10: 1.613314632 | I10: 60.17663577 | J10: 2.761085712 | K10: 3832.8298 | L10: 5579.4118 | M10: 0.844 | N10: 1.556265194 | O10: 1.46882791 | P10: 54.78728104 | Q10: 1.939198744 | R10: 3353.726075 | S10: 4271.737159 | T10: 0.844 | U10: 1.556265194 | V10: 1.348483119 | W10: 50.29842033 | X10: 1.299111659 | Y10: 2874.62235 | Z10: 3138.419138 | AA10: 0.844 | AB10: 1.556265194 | AC10: 1.249471195 | AD10: 46.60527559 | AE10: 0.8180994702 | AF10: 2395.518625 | AG10: 2179.457734 | AH10: 0.844 | AI10: 1.556265194 | AJ10: 1.169443975 | AK10: 43.62026027 | AL10: 0.4734371934 | AM10: 2544.6573 | AN10: 8852.737177 | AO10: 5122.103288 | AP10: 4596.533958
A11: Specific gravity, SG | B11: =B7/28.97 -> 0.6596479116 | C11: - | D11: 4541.4171 | E11: 6508.705388 | F11: 0.845 | G11: 1.555241376 | H11: 1.558468956 | I11: 58.13089207 | J11: 2.677232649 | K11: 4036.8152 | L11: 5142.6808 | M11: 0.845 | N11: 1.555241376 | O11: 1.427936381 | P11: 53.26202703 | Q11: 1.880306058 | R11: 3532.2133 | S11: 3937.364988 | T11: 0.845 | U11: 1.555241376 | V11: 1.318786227 | W11: 49.19072626 | X11: 1.25965816 | Y11: 3027.6114 | Z11: 2892.75795 | AA11: 0.845 | AB11: 1.555241376 | AC11: 1.228656275 | AD11: 45.82887907 | AE11: 0.7932541183 | AF11: 2523.0095 | AG11: 2008.859688 | AH11: 0.845 | AI11: 1.555241376 | AJ11: 1.155567327 | AK11: 43.1026613 | AL11: 0.4590590962
D12: 4831.713112 | E12: 5658.677972 | F12: 0.838 | G12: 1.562488281 | H12: 1.476062537 | I12: 55.05713264 | J12: 2.497059652 | K12: 4294.8561 | L12: 4471.0542 | M12: 0.838 | N12: 1.562488281 | O12: 1.366236317 | P12: 50.96061461 | Q12: 1.753764804 | R12: 3757.999087 | S12: 3423.150872 | T12: 0.838 | U12: 1.562488281 | V12: 1.273798417 | W12: 47.51268094 | X12: 1.174885406 | Y12: 3221.142075 | Z12: 2514.967987 | AA12: 0.838 | AB12: 1.562488281 | AC12: 1.197007759 | AD12: 44.64838942 | AE12: 0.7398695267 | AF12: 2684.285063 | AG12: 1746.505547 | AH12: 0.838 | AI12: 1.562488281 | AJ12: 1.134399014 | AK12: 42.31308321 | AL12: 0.4281652353
D13: 4966.72875 | E13: 5276.14193 | F13: 0.837 | G13: 1.563539025 | H13: 1.440053814 | I13: 53.71400728 | J13: 2.396173555 | K13: 4414.87 | L13: 4168.8035 | M13: 0.837 | N13: 1.563539025 | O13: 1.339124519 | P13: 49.94934458 | Q13: 1.682909273 | R13: 3863.01125 | S13: 3191.74018 | T13: 0.837 | U13: 1.563539025 | V13: 1.253927722 | W13: 46.77150402 | X13: 1.127417736 | Y13: 3311.1525 | Z13: 2344.951969 | AA13: 0.837 | AB13: 1.563539025 | AC13: 1.182963356 | AD13: 44.12453318 | AE13: 0.7099773496 | AF13: 2759.29375 | AG13: 1628.438867 | AH13: 0.837 | AI13: 1.563539025 | AJ13: 1.124966625 | AK13: 41.96125513 | AL13: 0.4108665217
D14: 5122.103288 | E14: 4596.533958 | F14: 0.82 | G14: 1.582021987 | H14: 1.377047432 | I14: 51.36386922 | J14: 2.197464001 | K14: 4552.9807 | L14: 3631.8293 | M14: 0.82 | N14: 1.582021987 | O14: 1.291552337 | P14: 48.17490217 | Q14: 1.543349202 | R14: 3983.858113 | S14: 2780.619308 | T14: 0.82 | U14: 1.582021987 | V14: 1.218969364 | W14: 45.46755727 | X14: 1.033923391 | Y14: 3414.735525 | Z14: 2042.903981 | AA14: 0.82 | AB14: 1.582021987 | AC14: 1.158195523 | AD14: 43.200693 | AE14: 0.6511004446 | AF14: 2845.612938 | AG14: 1418.68332 | AH14: 0.82 | AI14: 1.582021987 | AJ14: 1.108296631 | AK14: 41.33946434 | AL14: 0.3767942388
D16: Compresor map - actual conditions
D17: N | K17: N | R17: N | Y17: N | AF17: N | AO17: S. Factor | AP17: 1.1
D18: 4500 | K18: 4000 | R18: 3500 | Y18: 3000 | AF18: 2500 | AM18: Surge line | AO18: Surge control line
D19: Q | E19: Hp | F19: np | G19: n | H19: rp | I19: Pout | J19: Power | K19: Q | L19: Hp | M19: np | N19: n | O19: rp | P19: Pout | Q19: Power | R19: Q | S19: Hp | T19: np | U19: n | V19: rp | W19: Pout | X19: Power | Y19: Q | Z19: Hp | AA19: np | AB19: n | AC19: rp | AD19: Pout | AE19: Power | AF19: Q | AG19: Hp | AH19: np | AI19: n | AJ19: rp | AK19: Pout | AL19: Power | AM19: Q | AN19: rp | AO19: Q | AP19: rp
D20: m^3/hr | E20: m | F20: % | G20: - | I20: bar | J20: kJ | K20: m^3/hr | L20: m | M20: % | N20: - | P20: bar | Q20: kJ | R20: m^3/hr | S20: m | T20: % | U20: - | W20: bar | X20: kJ | Y20: m^3/hr | Z20: m | AA20: % | AB20: - | AD20: bar | AE20: kJ | AF20: m^3/s | AG20: m | AH20: % | AI20: - | AK20: bar | AL20: kJ | AM20: m^3/s | AN20: - | AO20: m^3/s | AP20: -
D21: =Qactual(Data!$B$4,Data!$B$5,Data!$B$7,Data!$B$8,Calculus!D6,$B$4,$B$5,$B$7,$B$9) -> 2835.927389 | E21: =E6 -> 8852.737177 | F21: =M21 -> 0.697 | G21: =1/(1-($B$6-1)/($B$6*F21)) -> 1.763110665 | H21: =rp_calc(Calculus!E21,Data!$B$4,Data!$B$8,G21,Data!$B$9) -> 1.748593625 | I21: =Data!$B$5*H21 -> 60.5363113 | J21: =Power_c($B$5,$B$4,$B$9,$B$10,D21,E21,F21) -> 2.756745768 | K21: =Qactual(Data!$B$4,Data!$B$5,Data!$B$7,Data!$B$8,Calculus!K6,$B$4,$B$5,$B$7,$B$9) -> 2520.824346 | L21: =L6 -> 6994.7553 | M21: =M6 -> 0.697 | N21: =1/(1-($B$6-1)/($B$6*M21)) -> 1.763110665 | O21: =rp_calc(Calculus!L21,Data!$B$4,Data!$B$8,N21,Data!$B$9) -> 1.571788672 | P21: =Data!$B$5*O21 -> 54.41532382 | Q21: =Power_c($B$5,$B$4,$B$9,$B$10,K21,L21,M21) -> 1.936150663 | R21: =Qactual(Data!$B$4,Data!$B$5,Data!$B$7,Data!$B$8,Calculus!R6,$B$4,$B$5,$B$7,$B$9) -> 2205.721303 | S21: =S6 -> 5355.359527 | T21: =AA21 -> 0.697 | U21: =1/(1-($B$6-1)/($B$6*T21)) -> 1.763110665 | V21: =rp_calc(Calculus!S21,Data!$B$4,Data!$B$8,U21,Data!$B$9) -> 1.424600291 | W21: =Data!$B$5*V21 -> 49.31966208 | X21: =Power_c($B$5,$B$4,$B$9,$B$10,R21,S21,T21) -> 1.297069682 | Y21: =Qactual(Data!$B$4,Data!$B$5,Data!$B$7,Data!$B$8,Calculus!Y6,$B$4,$B$5,$B$7,$B$9) -> 1890.618259 | Z21: =Z6 -> 3934.549856 | AA21: =AH21 -> 0.697 | AB21: =1/(1-($B$6-1)/($B$6*AA21)) -> 1.763110665 | AC21: =rp_calc(Calculus!Z21,Data!$B$4,Data!$B$8,AB21,Data!$B$9) -> 1.303634953 | AD21: =Data!$B$5*AC21 -> 45.13184206 | AE21: =Power_c($B$5,$B$4,$B$9,$B$10,Y21,Z21,AA21) -> 0.8168135609 | AF21: =Qactual(Data!$B$4,Data!$B$5,Data!$B$7,Data!$B$8,Calculus!AF6,$B$4,$B$5,$B$7,$B$9) -> 1575.515216 | AG21: =AG6 -> 2732.326289 | AH21: =M21 -> 0.697 | AI21: =1/(1-($B$6-1)/($B$6*AH21)) -> 1.763110665 | AJ21: =rp_calc(Calculus!AG21,Data!$B$4,Data!$B$8,AI21,Data!$B$9) -> 1.2060084 | AK21: =Data!$B$5*AJ21 -> 41.75201081 | AL21: =Power_c($B$5,$B$4,$B$9,$B$10,AF21,AG21,AH21) -> 0.472693033
D22: =Qactual(Data!$B$4,Data!$B$5,Data!$B$7,Data!$B$8,Calculus!D7,$B$4,$B$5,$B$7,$B$9) -> 3279.27785 | E22: =E7 -> 8808.170977 | F22: =M22 -> 0.756 | G22: =1/(1-($B$6-1)/($B$6*F22)) -> 1.664010624 | H22: =rp_calc(Calculus!E22,Data!$B$4,Data!$B$8,G22,Data!$B$9) -> 1.752772333 | I22: =Data!$B$5*H22 -> 60.68097818 | J22: =Power_c($B$5,$B$4,$B$9,$B$10,D22,E22,F22) -> 2.924145463 | K22: =Qactual(Data!$B$4,Data!$B$5,Data!$B$7,Data!$B$8,Calculus!K7,$B$4,$B$5,$B$7,$B$9) -> 2914.913644 | L22: =L7 -> 6959.5425 | M22: 0.756 | N22: =1/(1-($B$6-1)/($B$6*M22)) -> 1.664010624 | O22: =rp_calc(Calculus!L22,Data!$B$4,Data!$B$8,N22,Data!$B$9) -> 1.573632346 | P22: =Data!$B$5*O22 -> 54.47915181 | Q22: =Power_c($B$5,$B$4,$B$9,$B$10,K22,L22,M22) -> 2.053720819 | R22: =Qactual(Data!$B$4,Data!$B$5,Data!$B$7,Data!$B$8,Calculus!R7,$B$4,$B$5,$B$7,$B$9) -> 2550.549439 | S22: =S7 -> 5328.399727 | T22: =AA22 -> 0.756 | U22: =1/(1-($B$6-1)/($B$6*T22)) -> 1.664010624 | V22: =rp_calc(Calculus!S22,Data!$B$4,Data!$B$8,U22,Data!$B$9) -> 1.425106816 | W22: =Data!$B$5*V22 -> 49.33719796 | X22: =Power_c($B$5,$B$4,$B$9,$B$10,R22,S22,T22) -> 1.375832502 | Y22: =Qactual(Data!$B$4,Data!$B$5,Data!$B$7,Data!$B$8,Calculus!Y7,$B$4,$B$5,$B$7,$B$9) -> 2186.185233 | Z22: =Z7 -> 3914.742656 | AA22: =AH22 -> 0.756 | AB22: =1/(1-($B$6-1)/($B$6*AA22)) -> 1.664010624 | AC22: =rp_calc(Calculus!Z22,Data!$B$4,Data!$B$8,AB22,Data!$B$9) -> 1.303475482 | AD22: =Data!$B$5*AC22 -> 45.12632118 | AE22: =Power_c($B$5,$B$4,$B$9,$B$10,Y22,Z22,AA22) -> 0.8664134705 | AF22: =Qactual(Data!$B$4,Data!$B$5,Data!$B$7,Data!$B$8,Calculus!AF7,$B$4,$B$5,$B$7,$B$9) -> 1821.821028 | AG22: =AG7 -> 2718.571289 | AH22: =M22 -> 0.756 | AI22: =1/(1-($B$6-1)/($B$6*AH22)) -> 1.664010624 | AJ22: =rp_calc(Calculus!AG22,Data!$B$4,Data!$B$8,AI22,Data!$B$9) -> 1.205607821 | AK22: =Data!$B$5*AJ22 -> 41.73814276 | AL22: =Power_c($B$5,$B$4,$B$9,$B$10,AF22,AG22,AH22) -> 0.5013966843
D23: =Qactual(Data!$B$4,Data!$B$5,Data!$B$7,Data!$B$8,Calculus!D8,$B$4,$B$5,$B$7,$B$9) -> 4106.139024 | E23: 8167.826362 | F23: 0.824 | G23: 1.577564816 | H23: =rp_calc(Calculus!E23,Data!$B$4,Data!$B$8,G23,Data!$B$9) -> 1.696639026 | I23: =Data!$B$5*H23 -> 58.7376431 | J23: 3.115083922 | K23: =Qactual(Data!$B$4,Data!$B$5,Data!$B$7,Data!$B$8,Calculus!K8,$B$4,$B$5,$B$7,$B$9) -> 3649.901355 | L23: 6453.5912 | M23: 0.824 | N23: 1.577564816 | O23: =rp_calc(Calculus!L23,Data!$B$4,Data!$B$8,N23,Data!$B$9) -> 1.53091385 | P23: =Data!$B$5*O23 -> 53.00023749 | Q23: 2.187823001 | R23: =Qactual(Data!$B$4,Data!$B$5,Data!$B$7,Data!$B$8,Calculus!R8,$B$4,$B$5,$B$7,$B$9) -> 3193.663686 | S23: 4941.030762 | T23: 0.824 | U23: 1.577564816 | V23: =rp_calc(Calculus!S23,Data!$B$4,Data!$B$8,U23,Data!$B$9) -> 1.393536777 | W23: =Data!$B$5*V23 -> 48.24424321 | X23: 1.465670487 | Y23: =Qactual(Data!$B$4,Data!$B$5,Data!$B$7,Data!$B$8,Calculus!Y8,$B$4,$B$5,$B$7,$B$9) -> 2737.426016 | Z23: 3630.14505 | AA23: 0.824 | AB23: 1.577564816 | AC23: =rp_calc(Calculus!Z23,Data!$B$4,Data!$B$8,AB23,Data!$B$9) -> 1.281022074 | AD23: =Data!$B$5*AC23 -> 44.34898421 | AE23: 0.9229878286 | AF23: =Qactual(Data!$B$4,Data!$B$5,Data!$B$7,Data!$B$8,Calculus!AF8,$B$4,$B$5,$B$7,$B$9) -> 2281.188347 | AG23: 2520.934062 | AH23: 0.824 | AI23: 1.577564816 | AJ23: =rp_calc(Calculus!AG23,Data!$B$4,Data!$B$8,AI23,Data!$B$9) -> 1.190458921 | AK23: =Data!$B$5*AJ23 -> 41.21368786 | AL23: 0.5341364749
D24: =Qactual(Data!$B$4,Data!$B$5,Data!$B$7,Data!$B$8,Calculus!D9,$B$4,$B$5,$B$7,$B$9) -> 4467.044744 | E24: 7699.426903 | F24: 0.84 | G24: 1.560398506 | H24: =rp_calc(Calculus!E24,Data!$B$4,Data!$B$8,G24,Data!$B$9) -> 1.651645111 | I24: =Data!$B$5*H24 -> 57.17995375 | J24: 3.133691456 | K24: =Qactual(Data!$B$4,Data!$B$5,Data!$B$7,Data!$B$8,Calculus!K9,$B$4,$B$5,$B$7,$B$9) -> 3970.706439 | L24: 6083.4978 | M24: 0.84 | N24: 1.560398506 | O24: =rp_calc(Calculus!L24,Data!$B$4,Data!$B$8,N24,Data!$B$9) -> 1.497351903 | P24: =Data!$B$5*O24 -> 51.83832287 | Q24: 2.200891667 | R24: =Qactual(Data!$B$4,Data!$B$5,Data!$B$7,Data!$B$8,Calculus!R9,$B$4,$B$5,$B$7,$B$9) -> 3474.368134 | S24: 4657.678003 | T24: 0.84 | U24: 1.560398506 | V24: =rp_calc(Calculus!S24,Data!$B$4,Data!$B$8,U24,Data!$B$9) -> 1.369159973 | W24: =Data!$B$5*V24 -> 47.40031825 | X24: 1.474425472 | Y24: =Qactual(Data!$B$4,Data!$B$5,Data!$B$7,Data!$B$8,Calculus!Y9,$B$4,$B$5,$B$7,$B$9) -> 2978.029829 | Z24: 3421.967512 | AA24: 0.84 | AB24: 1.560398506 | AC24: =rp_calc(Calculus!Z24,Data!$B$4,Data!$B$8,AB24,Data!$B$9) -> 1.263938529 | AD24: =Data!$B$5*AC24 -> 43.75755187 | AE24: 0.9285011721 | AF24: =Qactual(Data!$B$4,Data!$B$5,Data!$B$7,Data!$B$8,Calculus!AF9,$B$4,$B$5,$B$7,$B$9) -> 2481.691524 | AG24: 2376.366328 | AH24: 0.84 | AI24: 1.560398506 | AJ24: =rp_calc(Calculus!AG24,Data!$B$4,Data!$B$8,AI24,Data!$B$9) -> 1.17907351 | AK24: =Data!$B$5*AJ24 -> 40.81952491 | AL24: 0.5373270672
D25: =Qactual(Data!$B$4,Data!$B$5,Data!$B$7,Data!$B$8,Calculus!D10,$B$4,$B$5,$B$7,$B$9) -> 4805.492033 | E25: 7061.443059 | F25: 0.844 | G25: 1.556265194 | H25: =rp_calc(Calculus!E25,Data!$B$4,Data!$B$8,G25,Data!$B$9) -> 1.589844519 | I25: =Data!$B$5*H25 -> 55.04041725 | J25: 3.077128929 | K25: =Qactual(Data!$B$4,Data!$B$5,Data!$B$7,Data!$B$8,Calculus!K10,$B$4,$B$5,$B$7,$B$9) -> 4271.548474 | L25: 5579.4118 | M25: 0.844 | N25: 1.556265194 | O25: =rp_calc(Calculus!L25,Data!$B$4,Data!$B$8,N25,Data!$B$9) -> 1.451353579 | P25: =Data!$B$5*O25 -> 50.24586091 | Q25: 2.161165997 | R25: =Qactual(Data!$B$4,Data!$B$5,Data!$B$7,Data!$B$8,Calculus!R10,$B$4,$B$5,$B$7,$B$9) -> 3737.604915 | S25: 4271.737159 | T25: 0.844 | U25: 1.556265194 | V25: =rp_calc(Calculus!S25,Data!$B$4,Data!$B$8,U25,Data!$B$9) -> 1.335809149 | W25: =Data!$B$5*V25 -> 46.24571273 | X25: 1.447812377 | Y25: =Qactual(Data!$B$4,Data!$B$5,Data!$B$7,Data!$B$8,Calculus!Y10,$B$4,$B$5,$B$7,$B$9) -> 3203.661356 | Z25: 3138.419138 | AA25: 0.844 | AB25: 1.556265194 | AC25: =rp_calc(Calculus!Z25,Data!$B$4,Data!$B$8,AB25,Data!$B$9) -> 1.2405984 | AD25: =Data!$B$5*AC25 -> 42.94951661 | AE25: 0.911741905 | AF25: =Qactual(Data!$B$4,Data!$B$5,Data!$B$7,Data!$B$8,Calculus!AF10,$B$4,$B$5,$B$7,$B$9) -> 2669.717796 | AG25: 2179.457734 | AH25: 0.844 | AI25: 1.556265194 | AJ25: =rp_calc(Calculus!AG25,Data!$B$4,Data!$B$8,AI25,Data!$B$9) -> 1.163534982 | AK25: =Data!$B$5*AJ25 -> 40.28158108 | AL25: 0.5276284173
D26: =Qactual(Data!$B$4,Data!$B$5,Data!$B$7,Data!$B$8,Calculus!D11,$B$4,$B$5,$B$7,$B$9) -> 5061.243075 | E26: 6508.705388 | F26: 0.845 | G26: 1.555241376 | H26: =rp_calc(Calculus!E26,Data!$B$4,Data!$B$8,G26,Data!$B$9) -> 1.537300907 | I26: =Data!$B$5*H26 -> 53.2213574 | J26: 2.983677761 | K26: =Qactual(Data!$B$4,Data!$B$5,Data!$B$7,Data!$B$8,Calculus!K11,$B$4,$B$5,$B$7,$B$9) -> 4498.882734 | L26: 5142.6808 | M26: 0.845 | N26: 1.555241376 | O26: =rp_calc(Calculus!L26,Data!$B$4,Data!$B$8,N26,Data!$B$9) -> 1.41211291 | P26: =Data!$B$5*O26 -> 48.88734895 | Q26: 2.095532255 | R26: =Qactual(Data!$B$4,Data!$B$5,Data!$B$7,Data!$B$8,Calculus!R11,$B$4,$B$5,$B$7,$B$9) -> 3936.522392 | S26: 3937.364988 | T26: 0.845 | U26: 1.555241376 | V26: =rp_calc(Calculus!S26,Data!$B$4,Data!$B$8,U26,Data!$B$9) -> 1.307266484 | W26: =Data!$B$5*V26 -> 45.25756567 | X26: 1.403842897 | Y26: =Qactual(Data!$B$4,Data!$B$5,Data!$B$7,Data!$B$8,Calculus!Y11,$B$4,$B$5,$B$7,$B$9) -> 3374.16205 | Z26: 2892.75795 | AA26: 0.845 | AB26: 1.555241376 | AC26: =rp_calc(Calculus!Z26,Data!$B$4,Data!$B$8,AB26,Data!$B$9) -> 1.22056377 | AD26: =Data!$B$5*AC26 -> 42.25591771 | AE26: 0.88405267 | AF26: =Qactual(Data!$B$4,Data!$B$5,Data!$B$7,Data!$B$8,Calculus!AF11,$B$4,$B$5,$B$7,$B$9) -> 2811.801709 | AG26: 2008.859688 | AH26: 0.845 | AI26: 1.555241376 | AJ26: =rp_calc(Calculus!AG26,Data!$B$4,Data!$B$8,AI26,Data!$B$9) -> 1.150161501 | AK26: =Data!$B$5*AJ26 -> 39.81859116 | AL26: 0.5116045544
D27: =Qactual(Data!$B$4,Data!$B$5,Data!$B$7,Data!$B$8,Calculus!D12,$B$4,$B$5,$B$7,$B$9) -> 5384.767352 | E27: 5658.677972 | F27: 0.838 | G27: 1.562488281 | H27: =rp_calc(Calculus!E27,Data!$B$4,Data!$B$8,G27,Data!$B$9) -> 1.458302122 | I27: =Data!$B$5*H27 -> 50.48641947 | J27: 2.782881554 | K27: =Qactual(Data!$B$4,Data!$B$5,Data!$B$7,Data!$B$8,Calculus!K12,$B$4,$B$5,$B$7,$B$9) -> 4786.459869 | L27: 4471.0542 | M27: 0.838 | N27: 1.562488281 | O27: =rp_calc(Calculus!L27,Data!$B$4,Data!$B$8,N27,Data!$B$9) -> 1.352871201 | P27: =Data!$B$5*O27 -> 46.83640098 | Q27: 1.95450666 | R27: =Qactual(Data!$B$4,Data!$B$5,Data!$B$7,Data!$B$8,Calculus!R12,$B$4,$B$5,$B$7,$B$9) -> 4188.152385 | S27: 3423.150872 | T27: 0.838 | U27: 1.562488281 | V27: =rp_calc(Calculus!S27,Data!$B$4,Data!$B$8,U27,Data!$B$9) -> 1.264007803 | W27: =Data!$B$5*V27 -> 43.75995013 | X27: 1.309366767 | Y27: =Qactual(Data!$B$4,Data!$B$5,Data!$B$7,Data!$B$8,Calculus!Y12,$B$4,$B$5,$B$7,$B$9) -> 3589.844901 | Z27: 2514.967987 | AA27: 0.838 | AB27: 1.562488281 | AC27: =rp_calc(Calculus!Z27,Data!$B$4,Data!$B$8,AB27,Data!$B$9) -> 1.190091037 | AD27: =Data!$B$5*AC27 -> 41.2009517 | AE27: 0.8245574974 | AF27: =Qactual(Data!$B$4,Data!$B$5,Data!$B$7,Data!$B$8,Calculus!AF12,$B$4,$B$5,$B$7,$B$9) -> 2991.537418 | AG27: 1746.505547 | AH27: 0.838 | AI27: 1.562488281 | AJ27: =rp_calc(Calculus!AG27,Data!$B$4,Data!$B$8,AI27,Data!$B$9) -> 1.129755562 | AK27: =Data!$B$5*AJ27 -> 39.11213757 | AL27: 0.4771744776
D28: =Qactual(Data!$B$4,Data!$B$5,Data!$B$7,Data!$B$8,Calculus!D13,$B$4,$B$5,$B$7,$B$9) -> 5535.237337 | E28: 5276.14193 | F28: 0.837 | G28: 1.563539025 | H28: =rp_calc(Calculus!E28,Data!$B$4,Data!$B$8,G28,Data!$B$9) -> 1.423752496 | I28: =Data!$B$5*H28 -> 49.29031141 | J28: 2.670447692 | K28: =Qactual(Data!$B$4,Data!$B$5,Data!$B$7,Data!$B$8,Calculus!K13,$B$4,$B$5,$B$7,$B$9) -> 4920.210966 | L28: 4168.8035 | M28: 0.837 | N28: 1.563539025 | O28: =rp_calc(Calculus!L28,Data!$B$4,Data!$B$8,N28,Data!$B$9) -> 1.326820908 | P28: =Data!$B$5*O28 -> 45.93453982 | Q28: 1.875540766 | R28: =Qactual(Data!$B$4,Data!$B$5,Data!$B$7,Data!$B$8,Calculus!R13,$B$4,$B$5,$B$7,$B$9) -> 4305.184595 | S28: 3191.74018 | T28: 0.837 | U28: 1.563539025 | V28: =rp_calc(Calculus!S28,Data!$B$4,Data!$B$8,U28,Data!$B$9) -> 1.244889841 | W28: =Data!$B$5*V28 -> 43.09808629 | X28: 1.256465786 | Y28: =Qactual(Data!$B$4,Data!$B$5,Data!$B$7,Data!$B$8,Calculus!Y13,$B$4,$B$5,$B$7,$B$9) -> 3690.158224 | Z28: 2344.951969 | AA28: 0.837 | AB28: 1.563539025 | AC28: =rp_calc(Calculus!Z28,Data!$B$4,Data!$B$8,AB28,Data!$B$9) -> 1.176562445 | AD28: =Data!$B$5*AC28 -> 40.73259185 | AE28: 0.7912437605 | AF28: =Qactual(Data!$B$4,Data!$B$5,Data!$B$7,Data!$B$8,Calculus!AF13,$B$4,$B$5,$B$7,$B$9) -> 3075.131854 | AG28: 1628.438867 | AH28: 0.837 | AI28: 1.563539025 | AJ28: =rp_calc(Calculus!AG28,Data!$B$4,Data!$B$8,AI28,Data!$B$9) -> 1.120660002 | AK28: =Data!$B$5*AJ28 -> 38.79724926 | AL28: 0.4578956947
D29: =Qactual(Data!$B$4,Data!$B$5,Data!$B$7,Data!$B$8,Calculus!D14,$B$4,$B$5,$B$7,$B$9) -> 5708.39657 | E29: 4596.533958 | F29: 0.82 | G29: 1.582021987 | H29: =rp_calc(Calculus!E29,Data!$B$4,Data!$B$8,G29,Data!$B$9) -> 1.363273041 | I29: =Data!$B$5*H29 -> 47.19651269 | J29: 2.448993169 | K29: =Qactual(Data!$B$4,Data!$B$5,Data!$B$7,Data!$B$8,Calculus!K14,$B$4,$B$5,$B$7,$B$9) -> 5074.130284 | L29: 3631.8293 | M29: 0.82 | N29: 1.582021987 | O29: =rp_calc(Calculus!L29,Data!$B$4,Data!$B$8,N29,Data!$B$9) -> 1.281094665 | P29: =Data!$B$5*O29 -> 44.3514973 | Q29: 1.720006176 | R29: =Qactual(Data!$B$4,Data!$B$5,Data!$B$7,Data!$B$8,Calculus!R14,$B$4,$B$5,$B$7,$B$9) -> 4439.863999 | S29: 2780.619308 | T29: 0.82 | U29: 1.582021987 | V29: =rp_calc(Calculus!S29,Data!$B$4,Data!$B$8,U29,Data!$B$9) -> 1.211245826 | W29: =Data!$B$5*V29 -> 41.9333305 | X29: 1.152269763 | Y29: =Qactual(Data!$B$4,Data!$B$5,Data!$B$7,Data!$B$8,Calculus!Y14,$B$4,$B$5,$B$7,$B$9) -> 3805.597713 | Z29: 2042.903981 | AA29: 0.82 | AB29: 1.582021987 | AC29: =rp_calc(Calculus!Z29,Data!$B$4,Data!$B$8,AB29,Data!$B$9) -> 1.152698819 | AD29: =Data!$B$5*AC29 -> 39.90643312 | AE29: 0.7256276057 | AF29: =Qactual(Data!$B$4,Data!$B$5,Data!$B$7,Data!$B$8,Calculus!AF14,$B$4,$B$5,$B$7,$B$9) -> 3171.331428 | AG29: 1418.68332 | AH29: 0.82 | AI29: 1.582021987 | AJ29: =rp_calc(Calculus!AG29,Data!$B$4,Data!$B$8,AI29,Data!$B$9) -> 1.104582627 | AK29: =Data!$B$5*AJ29 -> 38.24065055 | AL29: 0.4199233829
